Workbook

Sheet 12-31янв
A1: Школа | F1: Утвердил: | G1: должность | H1: директор
A2: Типовое примерное меню приготавливаемых блюд | G2: фамилия | H2: Коновалова И.А.
A3: Возрастная категория | E3: 7-11 лет | G3: дата | H3: 12 | I3: 1 | J3: 2026
H4: день | I4: месяц | J4: год
A5: Неделя | B5: День недели | C5: Прием пищи | D5: Раздел меню | E5: Блюда | F5: Вес блюда, г | G5: Белки | H5: Жиры | I5: Углеводы | J5: Калорийность | K5: № рецептуры | L5: Цена
A6: 1 | B6: 1 | C6: Завтрак | D6: прочее | E6: Печенье сахарное | F6: 60 | G6: 4.5 | H6: 7.2 | I6: 44.6 | J6: 259 | K6: ТК
D7: гор.блюдо | E7: Каша пшеничная молочная с маслом | F7: 210 | G7: 7.36 | H7: 8.48 | I7: 36.18 | J7: 247 | K7: 311,сб.шк.2004г.
D8: гор.напиток | E8: Чай с лимоном и сахаром | F8: 200 | G8: 0.2 | H8: 0 | I8: 9.3 | J8: 38 | K8: 686.сб.шк.2004г.
D9: хлеб | E9: Хлеб пшеничный | F9: 30 | G9: 2.25 | H9: 0.87 | I9: 15 | J9: 75 | K9: ДеЛи принт №1050
D10: хлеб | E10: Хлеб ржаной (дарницкий формовой) | F10: 30 | G10: 1.98 | H10: 0.33 | I10: 12.3 | J10: 62 | K10: 366,сб.Пермь.2008г
D13: итого | F13: =SUM(F6:F12) -> 530 | G13: =SUM(G6:G12) -> 16.29 | H13: 16.88 | I13: 117.38 | J13: 681 | L13: 77.76
A14: =A6 -> 1 | B14: =B6 -> 1 | C14: Обед | D14: закуска
D15: 1 блюдо
D16: 2 блюдо
D17: гарнир
D18: напиток
D19: хлеб бел.
D20: хлеб черн.
D23: итого | F23: =SUM(F14:F22) -> 0 | G23: =SUM(G14:G22) -> 0 | H23: 0 | I23: 0 | J23: 0 | L23: 0
A24: =A6 -> 1 | B24: =B6 -> 1 | C24: Итого за день: | F24: =F13+F23 -> 530 | G24: =G13+G23 -> 16.29 | H24: 16.88 | I24: 117.38 | J24: 681 | L24: 77.76
A25: 1 | B25: 2 | C25: Завтрак | D25: гор.блюдо | E25: Котлеты из мяса говядины с томатным соусом | F25: 110 | G25: 12.8 | H25: 13.12 | I25: 16.96 | J25: 242 | K25: 451,сб.шк.2004г.
D26: гор.блюдо | E26: Макаронные изделия отварные | F26: 155 | G26: 5.25 | H26: 3.67 | I26: 33.3 | J26: 194 | K26: 332.сб.2004г.
D27: напиток | E27: Компот из компотной смеси (быст.замор.) | F27: 200 | G27: 0.21 | H27: 0.04 | I27: 18.01 | J27: 73 | K27: 123.орг.пит.шк
D28: хлеб | E28: Хлеб пшеничный | F28: 30 | G28: 2.25 | H28: 0.87 | I28: 15 | J28: 75 | K28: ДеЛи принт №1050
D29: хлеб | E29: Хлеб ржаной (дарницкий формовой) | F29: 30 | G29: 1.98 | H29: 0.33 | I29: 12.3 | J29: 62 | K29: 366,сб.Пермь.2008г
D32: итого | F32: =SUM(F25:F31) -> 525 | G32: =SUM(G25:G31) -> 22.49 | H32: 18.03 | I32: 95.57 | J32: 646 | L32: 77.76
A33: =A25 -> 1 | B33: =B25 -> 2 | C33: Обед | D33: закуска
D34: 1 блюдо
D35: 2 блюдо
D36: гарнир
D37: напиток
D38: хлеб бел.
D39: хлеб черн.
D42: итого | F42: =SUM(F33:F41) -> 0 | G42: =SUM(G33:G41) -> 0 | H42: 0 | I42: 0 | J42: 0 | L42: 0
A43: =A25 -> 1 | B43: =B25 -> 2 | C43: Итого за день: | F43: =F32+F42 -> 525 | G43: =G32+G42 -> 22.49 | H43: 18.03 | I43: 95.57 | J43: 646 | L43: 77.76
A44: 1 | B44: 3 | C44: Завтрак | D44: гор.блюдо | E44: Грудка куриная в сливочном соусе | F44: 120 | G44: 20 | H44: 16.8 | I44: 0.3 | J44: 232 | K44: 290.ДеЛи2015г.
D45: гор.блюдо | E45: Каша рисовая рассыпчатая | F45: 155 | G45: 3.67 | H45: 3.92 | I45: 37.5 | J45: 207 | K45: 297.сб.шк.2004г.
D46: напиток | E46: Компот из смеси сухофруктов | F46: 200 | G46: 0.5 | H46: 0.1 | I46: 30.9 | J46: 123 | K46: 639(3).сб.шк.2004г.
D47: хлеб | E47: Хлеб пшеничный | F47: 30 | G47: 2.25 | H47: 0.87 | I47: 15 | J47: 75 | K47: ДеЛи принт №1050
D48: хлеб | E48: Хлеб ржаной (дарницкий формовой) | F48: 30 | G48: 1.98 | H48: 0.33 | I48: 12.3 | J48: 62 | K48: 366,сб.Пермь.2008г
D51: итого | F51: =SUM(F44:F50) -> 535 | G51: =SUM(G44:G50) -> 28.4 | H51: 22.02 | I51: 96 | J51: 699 | L51: 77.76
A52: =A44 -> 1 | B52: =B44 -> 3 | C52: Обед | D52: закуска
D53: 1 блюдо
D54: 2 блюдо
D55: гарнир
D56: напиток
D57: хлеб бел.
D58: хлеб черн.
D61: итого | F61: =SUM(F52:F60) -> 0 | G61: =SUM(G52:G60) -> 0 | H61: 0 | I61: 0 | J61: 0 | L61: 0
A62: =A44 -> 1 | B62: =B44 -> 3 | C62: Итого за день: | F62: =F51+F61 -> 535 | G62: =G51+G61 -> 28.4 | H62: 22.02 | I62: 96 | J62: 699 | L62: 77.76
A63: 1 | B63: 4 | C63: Завтрак | D63: прочее | E63: Сыр порциями | F63: 30 | G63: 7.4 | H63: 8 | I63: 0 | J63: 105 | K63: 336.сб.Пермь2008г.
D64: прочее | E64: Яйцо вареное | F64: 50 | G64: 6.3 | H64: 5.3 | I64: 0.5 | J64: 78 | K64: ТТК
D65: гор.блюдо | E65: Каша пшенная молочная с маслом | F65: 160 | G65: 5.52 | H65: 6.36 | I65: 27.14 | J65: 185 | K65: 311.сб.шк.2004г.
D66: напиток | E66: Напиток из плодов шиповника | F66: 200 | G66: 0.7 | H66: 0.3 | I66: 29 | J66: 127 | K66: 705,сб.шк.2004г.
D67: хлеб | E67: Хлеб пшеничный | F67: 30 | G67: 2.25 | H67: 0.87 | I67: 15 | J67: 75 | K67: ДеЛи принт №1050
D68: хлеб | E68: Хлеб ржаной (дарницкий формовой) | F68: 30 | G68: 1.98 | H68: 0.33 | I68: 12.3 | J68: 62 | K68: 366,сб.Пермь.2008г
D69: итого | F69: =SUM(F63:F68) -> 500 | G69: =SUM(G63:G68) -> 24.15 | H69: =SUM(H63:H68) -> 21.16 | I69: =SUM(I63:I68) -> 83.94 | J69: =SUM(J63:J68) -> 632 | L69: 77.76
A70: =A63 -> 1 | B70: =B63 -> 4 | C70: Обед | D70: закуска
D71: 1 блюдо
D72: 2 блюдо
D73: гарнир
D74: напиток
D75: хлеб бел.
D76: хлеб черн.
D79: итого | F79: =SUM(F70:F78) -> 0 | G79: =SUM(G70:G78) -> 0 | H79: 0 | I79: 0 | J79: 0 | L79: =SUM(L70:L78) -> 0
A80: =A63 -> 1 | B80: =B63 -> 4 | C80: Итого за день: | F80: =F69+F79 -> 500 | G80: =G69+G79 -> 24.15 | H80: 21.16 | I80: 83.94 | J80: 632 | L80: =L69+L79 -> 77.76
A81: 1 | B81: 5 | C81: Завтрак | D81: гор.блюдо | E81: Сосиски отварные с маслом сливочным | F81: 110 | G81: 9.8 | H81: 24.9 | I81: 0.8 | J81: 267 | K81: 413.сб.шк.2004г.
D82: гор.блюдо | E82: Каша гречневая рассыпчатая | F82: 155 | G82: 8.83 | H82: 5.67 | I82: 38.6 | J82: 260 | K82: 297,сб.шк.2004г.
D83: напиток | E83: Компот из компотной смеси (быст.замор.) | F83: 200 | G83: 0.21 | H83: 0.04 | I83: 18.01 | J83: 73 | K83: 123.орг.пит.шк
D84: хлеб | E84: Хлеб пшеничный | F84: 30 | G84: 2.25 | H84: 0.87 | I84: 15 | J84: 75 | K84: ДеЛи принт №1050
D85: хлеб | E85: Хлеб ржаной (дарницкий формовой) | F85: 30 | G85: 1.98 | H85: 0.33 | I85: 12.3 | J85: 62 | K85: 366,сб.Пермь.2008г
D88: итого | F88: =SUM(F81:F87) -> 525 | G88: =SUM(G81:G87) -> 23.07 | H88: 31.81 | I88: 84.71 | J88: 737 | L88: 77.76
A89: =A81 -> 1 | B89: =B81 -> 5 | C89: Обед | D89: закуска
D90: 1 блюдо
D91: 2 блюдо
D92: гарнир
D93: напиток
D94: хлеб бел.
D95: хлеб черн.
D98: итого | F98: =SUM(F89:F97) -> 0 | G98: =SUM(G89:G97) -> 0 | H98: 0 | I98: 0 | J98: 0 | L98: =SUM(L89:L97) -> 0
A99: =A81 -> 1 | B99: =B81 -> 5 | C99: Итого за день: | F99: =F88+F98 -> 525 | G99: =G88+G98 -> 23.07 | H99: 31.81 | I99: 84.71 | J99: 737 | L99: 77.76
A100: 1 | B100: 6 | C100: Завтрак | D100: гор.блюдо | E100: Плов из курицы | F100: 250 | G100: 22.8 | H100: 29 | I100: 40.2 | J100: 521 | K100: 492.сб.шк.2004г.
D101: напиток | E101: Компот из кураги | F101: 200 | G101: 1.2 | H101: 0.1 | I101: 29.5 | J101: 127 | K101: 638.сб.шк.2004г.
D102: хлеб | E102: Хлеб пшеничный | F102: 30 | G102: 2.25 | H102: 0.87 | I102: 15 | J102: 75 | K102: ДеЛи принт №1050
D103: хлеб | E103: Хлеб ржаной (дарницкий формовой) | F103: 30 | G103: 1.98 | H103: 0.33 | I103: 12.3 | J103: 62 | K103: 366,сб.Пермь.2008г
D107: итого | F107: =SUM(F100:F106) -> 510 | G107: =SUM(G100:G106) -> 28.23 | H107: 30.3 | I107: 97 | J107: 785 | L107: 77.76
A108: =A100 -> 1 | B108: =B100 -> 6 | C108: Обед | D108: закуска
D109: 1 блюдо
D110: 2 блюдо
D111: гарнир
D112: напиток
D113: хлеб бел.
D114: хлеб черн.
D117: итого | F117: =SUM(F108:F116) -> 0 | G117: =SUM(G108:G116) -> 0 | H117: 0 | I117: 0 | J117: 0 | L117: =SUM(L108:L116) -> 0
A118: =A100 -> 1 | B118: =B100 -> 6 | C118: Итого за день: | F118: =F107+F117 -> 510 | G118: =G107+G117 -> 28.23 | H118: 30.3 | I118: 97 | J118: 785 | L118: 77.76
A119: 2 | B119: 7 | C119: Завтрак | D119: прочее | E119: Ветчина из курицы | F119: 30 | G119: 4.1 | H119: 2.7 | I119: 0 | J119: 41 | K119: 363,сб.Пермь.2008г
D120: прочее | E120: Печенье сахарное | F120: 60 | G120: 4.5 | H120: 7.2 | I120: 44.6 | J120: 259 | K120: ТК
D121: гор.блюдо | E121: Каша молочная "Дружба" с маслом | F121: 160 | G121: 6.32 | H121: 8.64 | I121: 33.52 | J121: 240 | K121: 311сб.шк.2004г.
D122: гор.напиток | E122: Чай с лимоном и сахаром | F122: 200 | G122: 0.2 | H122: 0 | I122: 9.3 | J122: 38 | K122: 686.сб.шк.2004г.
D123: хлеб | E123: Хлеб пшеничный | F123: 30 | G123: 2.25 | H123: 0.87 | I123: 15 | J123: 75 | K123: ДеЛи принт №1050
D124: хлеб | E124: Хлеб ржаной (дарницкий формовой) | F124: 30 | G124: 1.98 | H124: 0.33 | I124: 12.3 | J124: 62 | K124: 366,сб.Пермь.2008г
D126: итого | F126: =SUM(F119:F125) -> 510 | G126: =SUM(G119:G125) -> 19.35 | H126: 19.74 | I126: 114.72 | J126: 715 | L126: 77.76
A127: =A119 -> 2 | B127: =B119 -> 7 | C127: Обед | D127: закуска
D128: 1 блюдо
D129: 2 блюдо
D130: гарнир
D131: напиток
D132: хлеб бел.
D133: хлеб черн.
D136: итого | F136: =SUM(F127:F135) -> 0 | G136: =SUM(G127:G135) -> 0 | H136: 0 | I136: 0 | J136: 0 | L136: =SUM(L127:L135) -> 0
A137: =A119 -> 2 | B137: =B119 -> 7 | C137: Итого за день: | F137: =F126+F136 -> 510 | G137: =G126+G136 -> 19.35 | H137: 19.74 | I137: 114.72 | J137: 715 | L137: 77.76
A138: 2 | B138: 8 | C138: Завтрак | D138: гор.блюдо | E138: Ёжики из говядины с рисом в соусе томатном | F138: 110 | G138: 9.2 | H138: 13.5 | I138: 11.6 | J138: 207 | K138: 462.сб.шк.2004
D139: гор.блюдо | E139: Картофельное пюре | F139: 150 | G139: 3.08 | H139: 4.73 | I139: 20 | J139: 140 | K139: 520(3).сб.шк.2004г.
D140: напиток | E140: Компот из компотной смеси (быст.замор.) | F140: 200 | G140: 0.21 | H140: 0.04 | I140: 18.01 | J140: 73 | K140: 123.орг.пит.шк
D141: хлеб | E141: Хлеб пшеничный | F141: 30 | G141: 2.25 | H141: 0.87 | I141: 15 | J141: 75 | K141: ДеЛи принт №1050
D142: хлеб | E142: Хлеб ржаной (дарницкий формовой) | F142: 30 | G142: 1.98 | H142: 0.33 | I142: 12.3 | J142: 62 | K142: 366,сб.Пермь.2008г
D145: итого | F145: =SUM(F138:F144) -> 520 | G145: =SUM(G138:G144) -> 16.72 | H145: 19.47 | I145: 76.91 | J145: 557 | L145: 77.76
A146: =A138 -> 2 | B146: =B138 -> 8 | C146: Обед | D146: закуска
D147: 1 блюдо
D148: 2 блюдо
D149: гарнир
D150: напиток
D151: хлеб бел.
D152: хлеб черн.
D155: итого | F155: =SUM(F146:F154) -> 0 | G155: =SUM(G146:G154) -> 0 | H155: 0 | I155: 0 | J155: 0 | L155: =SUM(L146:L154) -> 0
A156: =A138 -> 2 | B156: =B138 -> 8 | C156: Итого за день: | F156: =F145+F155 -> 520 | G156: =G145+G155 -> 16.72 | H156: 19.47 | I156: 76.91 | J156: 557 | L156: 77.76
A157: 2 | B157: 9 | C157: Завтрак | D157: гор.блюдо | E157: Рыба (горбуша), тушенная в томате с овощами | F157: 120 | G157: 14.24 | H157: 7.04 | I157: 7.52 | J157: 150 | K157: 374,сб.шк.2004г.
D158: гор.блюдо | E158: Каша рисовая рассыпчатая | F158: 155 | G158: 3.67 | H158: 3.92 | I158: 37.5 | J158: 207 | K158: 297.сб.шк.2004г.
D159: напиток | E159: Компот из смеси сухофруктов | F159: 200 | G159: 0.5 | H159: 0.1 | I159: 30.9 | J159: 123 | K159: 639(3).сб.шк.2004г.
D160: хлеб | E160: Хлеб пшеничный | F160: 30 | G160: 2.25 | H160: 0.87 | I160: 15 | J160: 75 | K160: ДеЛи принт №1050
D161: хлеб | E161: Хлеб ржаной (дарницкий формовой) | F161: 30 | G161: 1.98 | H161: 0.33 | I161: 12.3 | J161: 62 | K161: 366,сб.Пермь.2008г
D164: итого | F164: =SUM(F157:F163) -> 535 | G164: =SUM(G157:G163) -> 22.64 | H164: 12.26 | I164: 103.22 | J164: 617 | L164: 77.76
A165: =A157 -> 2 | B165: =B157 -> 9 | C165: Обед | D165: закуска
D166: 1 блюдо
D167: 2 блюдо
D168: гарнир
D169: напиток
D170: хлеб бел.
D171: хлеб черн.
D174: итого | F174: =SUM(F165:F173) -> 0 | G174: =SUM(G165:G173) -> 0 | H174: 0 | I174: 0 | J174: 0 | L174: =SUM(L165:L173) -> 0
A175: =A157 -> 2 | B175: =B157 -> 9 | C175: Итого за день: | F175: =F164+F174 -> 535 | G175: =G164+G174 -> 22.64 | H175: 12.26 | I175: 103.22 | J175: 617 | L175: =L164+L174 -> 77.76
A176: 2 | B176: 10 | C176: Завтрак | D176: прочее | E176: Сыр порциями | F176: 30 | G176: 7.4 | H176: 8 | I176: 0 | J176: 105 | K176: 336.сб.Пермь2008г.
D177: прочее | E177: Яйцо вареное | F177: 50 | G177: 6.3 | H177: 5.3 | I177: 0.5 | J177: 78 | K177: ТТК
D178: гор.блюдо | E178: Каша ячневая молочная с маслом | F178: 160 | G178: 5.22 | H178: 6 | I178: 26.8 | J178: 188 | K178: 302,сб.шк.2004г.
D179: напиток | E179: Компот из кураги | F179: 200 | G179: 1.2 | H179: 0.1 | I179: 29.5 | J179: 127 | K179: 638.сб.шк.2004г.
D180: хлеб | E180: Хлеб пшеничный | F180: 30 | G180: 2.25 | H180: 0.87 | I180: 15 | J180: 75 | K180: ДеЛи принт №1050
D181: хлеб | E181: Хлеб ржаной (дарницкий формовой) | F181: 30 | G181: 1.98 | H181: 0.33 | I181: 12.3 | J181: 62 | K181: 366,сб.Пермь.2008г
D183: итого | F183: =SUM(F176:F182) -> 500 | G183: =SUM(G176:G182) -> 24.35 | H183: 20.6 | I183: 84.1 | J183: 635 | L183: 77.76
A184: =A176 -> 2 | B184: =B176 -> 10 | C184: Обед | D184: закуска
D185: 1 блюдо
D186: 2 блюдо
D187: гарнир
D188: напиток
D189: хлеб бел.
D190: хлеб черн.
D193: итого | F193: =SUM(F184:F192) -> 0 | G193: =SUM(G184:G192) -> 0 | H193: 0 | I193: 0 | J193: 0 | L193: =SUM(L184:L192) -> 0
A194: =A176 -> 2 | B194: =B176 -> 10 | C194: Итого за день: | F194: =F183+F193 -> 500 | G194: =G183+G193 -> 24.35 | H194: 20.6 | I194: 84.1 | J194: 635 | L194: =L183+L193 -> 77.76
A195: 2 | B195: 11 | C195: Завтрак | D195: гор.блюдо | E195: Сосиски отварные с маслом сливочным | F195: 110 | G195: 9.8 | H195: 24.9 | I195: 0.8 | J195: 267 | K195: 413.сб.шк.2004г.
D196: гор.блюдо | E196: Макаронные изделия отварные | F196: 155 | G196: 5.25 | H196: 3.67 | I196: 33.3 | J196: 194 | K196: 332.сб.2004г.
D197: напиток | E197: Напиток из плодов шиповника | F197: 200 | G197: 0.7 | H197: 0.3 | I197: 29 | J197: 127 | K197: 705,сб.шк.2004г.
D198: хлеб | E198: Хлеб пшеничный | F198: 30 | G198: 2.25 | H198: 0.87 | I198: 15 | J198: 75 | K198: ДеЛи принт №1050
D199: хлеб | E199: Хлеб ржаной (дарницкий формовой) | F199: 30 | G199: 1.98 | H199: 0.33 | I199: 12.3 | J199: 62 | K199: 366,сб.Пермь.2008г
D202: итого | F202: =SUM(F195:F201) -> 525 | G202: =SUM(G195:G201) -> 19.98 | H202: 30.07 | I202: 90.4 | J202: 725 | L202: 77.76
A203: =A195 -> 2 | B203: =B195 -> 11 | C203: Обед | D203: закуска
D204: 1 блюдо
D205: 2 блюдо
D206: гарнир
D207: напиток
D208: хлеб бел.
D209: хлеб черн.
D212: итого | F212: =SUM(F203:F211) -> 0 | G212: =SUM(G203:G211) -> 0 | H212: 0 | I212: 0 | J212: 0 | L212: =SUM(L203:L211) -> 0
A213: =A195 -> 2 | B213: =B195 -> 11 | C213: Итого за день: | F213: =F202+F212 -> 525 | G213: =G202+G212 -> 19.98 | H213: 30.07 | I213: 90.4 | J213: 725 | L213: =L202+L212 -> 77.76
A214: 2 | B214: 12 | C214: Завтрак | D214: гор.блюдо | E214: Каша гречневая с овощами, мясным фаршем | F214: 250 | G214: 26.1 | H214: 25.3 | I214: 38.6 | J214: 490 | K214: 443,сб.шк.2004г.
D217: напиток | E217: Компот из компотной смеси (быст.замор.) | F217: 200 | G217: 0.21 | H217: 0.04 | I217: 18.01 | J217: 73 | K217: 123.орг.пит.шк
D218: хлеб | E218: Хлеб пшеничный | F218: 30 | G218: 2.25 | H218: 0.87 | I218: 15 | J218: 75 | K218: ДеЛи принт №1050
D219: хлеб | E219: Хлеб ржаной (дарницкий формовой) | F219: 30 | G219: 1.98 | H219: 0.33 | I219: 12.3 | J219: 62 | K219: 366,сб.Пермь.2008г
D221: итого | F221: =SUM(F214:F220) -> 510 | G221: =SUM(G214:G220) -> 30.54 | H221: 26.54 | I221: 83.91 | J221: 700 | L221: 77.76
A222: =A214 -> 2 | B222: =B214 -> 12 | C222: Обед | D222: закуска
D223: 1 блюдо
D224: 2 блюдо
D225: гарнир
D226: напиток
D227: хлеб бел.
D228: хлеб черн.
D231: итого | F231: =SUM(F222:F230) -> 0 | G231: =SUM(G222:G230) -> 0 | H231: 0 | I231: 0 | J231: 0 | L231: =SUM(L222:L230) -> 0
A232: =A214 -> 2 | B232: =B214 -> 12 | C232: Итого за день: | F232: =F221+F231 -> 510 | G232: =G221+G231 -> 30.54 | H232: 26.54 | I232: 83.91 | J232: 700 | L232: =L221+L231 -> 77.76
C233: Среднее значение за период: | F233: =(F23+F42+F61+F80+F99+F118+F137+F156+F175+F194+F213+F232)/(IF(F23=0,0,1)+IF(F42=0,0,1)+IF(F61=0,0,1)+IF(F80=0,0,1)+IF(F99=0,0,1)+IF(F118=0,0,1)+IF(F137=0,0,1)+IF(F156=0,0,1)+IF(F175=0,0,1)+IF(F194=0,0,1)+IF(F213=0,0,1)+IF(F232=0,0,1)) -> 515 | G233: =(G23+G42+G61+G80+G99+G118+G137+G156+G175+G194+G213+G232)/(IF(G23=0,0,1)+IF(G42=0,0,1)+IF(G61=0,0,1)+IF(G80=0,0,1)+IF(G99=0,0,1)+IF(G118=0,0,1)+IF(G137=0,0,1)+IF(G156=0,0,1)+IF(G175=0,0,1)+IF(G194=0,0,1)+IF(G213=0,0,1)+IF(G232=0,0,1)) -> 23.22555556 | H233: 23.55 | I233: =(I23+I42+I61+I80+I99+I118+I137+I156+I175+I194+I213+I232)/(IF(I23=0,0,1)+IF(I42=0,0,1)+IF(I61=0,0,1)+IF(I80=0,0,1)+IF(I99=0,0,1)+IF(I118=0,0,1)+IF(I137=0,0,1)+IF(I156=0,0,1)+IF(I175=0,0,1)+IF(I194=0,0,1)+IF(I213=0,0,1)+IF(I232=0,0,1)) -> 90.99 | J233: 678.1111111 | L233: 77.76
